fUST/lending_fUST_20260116
["ID","MTS","AMOUNT","RATE_DAILY","PERIOD"]
[402167461,1768559439611,-500.0,0.00013272,2]
[402167462,1768559439619,-172.90141714,0.00013273,2]
[402167463,1768559439629,-498.42292613,0.00013273,2]
[402167464,1768559439638,-500.0,0.00013273,2]
[402167465,1768559439648,-500.0,0.00013273,2]
[402167466,1768559439658,-800.0,0.00013274,2]
[402167467,1768559439667,-800.0,0.00013302,2]
[402167468,1768559439677,-3348.15140279,0.00013313,2]
[402167469,1768559439686,-800.0,0.00013344,2]
[402167470,1768559439694,-240.39898709,0.00013352,2]
[402167471,1768559439704,-500.0,0.00013396,2]
[402167472,1768559439713,-688.0,0.00013396,2]
[402167473,1768559439722,-500.0,0.00013396,2]
[402167474,1768559439731,-2398.4119403,0.00013397,2]
[402167475,1768559439741,-496.47127164,0.00013397,2]
[402167476,1768559439750,-720.0,0.00013433,2]
[402167477,1768559439759,-4294.84,0.00013452,2]
[402167478,1768559439768,-541.0,0.00013507,2]
[402167479,1768559439777,-823.0,0.00013507,2]
[402167480,1768559439787,-500.0,0.00013533,2]
[402167481,1768559439796,-688.0,0.00013533,2]
[402167482,1768559439804,-500.0,0.00013533,2]
[402167483,1768559439813,-1569.2848594,0.00013538,2]
[402167484,1768559439823,-500.0,0.00013546,2]
[402167485,1768559439832,-517.43203598,0.0001367,2]
[402167487,1768559439841,-688.0,0.0001367,2]
[402167489,1768559439850,-256.00368609,0.0001367,2]
[402167491,1768559439859,-500.0,0.0001367,2]
[402167493,1768559439868,-16537.72250373,0.00013675,2]
[402167495,1768559439881,-500.0,0.00013698,2]
[402167497,1768559439890,-500.0,0.00013698,2]
[402167499,1768559439899,-525.74690785,0.00013698,2]
[402167501,1768559439909,-912.04,0.00013698,2]
[402167502,1768559439919,-912.04,0.00013698,2]
[402167503,1768559439928,-912.04,0.00013698,2]
[402167504,1768559439938,-912.04,0.00013698,2]
[402167505,1768559439951,-912.04,0.00013698,2]
[402167506,1768559439960,-912.04,0.00013698,2]
[402167507,1768559439969,-912.04,0.00013698,2]
[402167508,1768559439979,-912.04,0.00013698,2]
[402167509,1768559439989,-912.04,0.00013698,2]
[402167510,1768559439998,-912.04,0.00013698,2]
[402167511,1768559440007,-500.0,0.00013698,2]
[402167512,1768559440016,-500.0,0.00013698,2]
[402167513,1768559440025,-500.0,0.00013698,2]
[402167514,1768559440034,-500.0,0.00013698,2]
[402167515,1768559440043,-500.0,0.00013698,2]
[402167517,1768559440053,-500.0,0.00013698,2]
[402167518,1768559440062,-500.0,0.00013698,2]
[402167520,1768559440071,-500.0,0.00013698,2]
[402167521,1768559440080,-500.0,0.00013698,2]
[402167522,1768559440089,-500.0,0.00013698,2]
[402167523,1768559440098,-500.0,0.00013698,2]
[402167524,1768559440107,-500.0,0.00013698,2]
[402167525,1768559440116,-1000.0,0.00013699,2]
[402167526,1768559440125,-370.444585,0.00013699,2]
[402167527,1768559440134,-308.86248808,0.00013699,2]
[402167528,1768559440143,-501.82620036,0.00013699,2]
[402167529,1768559440153,-500.0,0.00013699,2]
[402167530,1768559440162,-500.0,0.00013802,2]
[402167531,1768559440171,-10000.0,0.00013803,2]
[402167532,1768559440181,-1308.98,0.00013803,2]
[402167533,1768559440190,-688.0,0.00013807,2]
[402167534,1768559440200,-500.0,0.00013807,2]
[402167535,1768559440210,-500.0,0.0001382,2]
[402167537,1768559440219,-912.04,0.0001382,2]
[402167539,1768559440229,-1000.0,0.00013821,2]
[402167540,1768559440238,-500.0,0.00013821,2]
[402167541,1768559440248,-1051.85375617,0.00013943,2]
[402167542,1768559440257,-688.0,0.00013944,2]
[402167543,1768559440267,-500.0,0.00013944,2]
[402167545,1768559440276,-150.74696944,0.00013944,2]
[402167547,1768559440285,-2487.15318209,0.00013945,2]
[402167549,1768559440295,-514.84070869,0.00013945,2]
[402167550,1768559440304,-500.0,0.00013999,2]
[402167551,1768559440313,-501.15478693,0.00014,2]
[402167553,1768559440322,-180.0285874,0.00014081,2]
[402167554,1768559440332,-203.57088388,0.00014081,2]
[402167555,1768559440341,-204.18892172,0.00014081,2]
[402167556,1768559440351,-688.0,0.00014081,2]
[402167557,1768559440360,-500.0,0.00014081,2]
[402167558,1768559440369,-500.0,0.00014094,2]
[402167559,1768559440377,-763.398784,0.00014164,2]
[402167560,1768559440387,-2499.665573,0.00014164,7]
[402167561,1768559440396,-763.0392162,0.00014192,2]
[402167562,1768559440405,-364.844433,0.00014202,7]
[402167563,1768559440414,-1196.119871,0.00014202,7]
[402167564,1768559440423,-688.0,0.00014218,2]
[402167565,1768559440432,-500.0,0.00014218,2]
[402167566,1768559440441,-2009.62313,0.00014218,7]
[402167567,1768559440450,-2368.297424,0.00014218,7]
[402167568,1768559440459,-2842.195768,0.00014218,7]
[402167569,1768559440469,-1949.293005,0.00014247,7]
[402167570,1768559440478,-509.9956462,0.00014247,2]
[402167571,1768559440487,-645.920074,0.00014247,7]
[402167572,1768559440497,-610.17473,0.00014256,7]
[402167573,1768559440506,-455.056793,0.00014256,7]
[402167574,1768559440516,-5010.65,0.00014293,2]
[402167575,1768559440525,-912.04,0.00014333,2]
[402167576,1768559440534,-1532.519158,0.00014355,7]
[402167577,1768559440542,-688.0,0.00014355,2]
[402167578,1768559440551,-500.0,0.00014355,2]
[402167579,1768559440559,-1321.982304,0.00014355,7]
[402167580,1768559440568,-286.5314506,0.00014368,2]
[402167581,1768559440577,-151.0,0.000144,2]
[402167582,1768559440586,-2261.435966,0.00014492,7]
[402167583,1768559440596,-688.0,0.00014492,2]
[402167584,1768559440604,-500.0,0.00014492,2]
[402167585,1768559440613,-1365.24473,0.00014492,7]
[402167586,1768559440623,-2579.17784983,0.00014493,2]
[402167587,1768559440632,-533.88981491,0.00014493,2]
[402167588,1768559440641,-500.0,0.00014597,2]
[402167589,1768559440650,-2415.049186,0.00014598,7]
[402167590,1768559440659,-688.0,0.00014629,2]
[402167591,1768559440667,-500.0,0.00014629,2]
[402167592,1768559440676,-1013.000445,0.00014713,7]
[402167593,1768559440685,-688.0,0.00014766,2]
[402167594,1768559440694,-500.0,0.00014766,2]
[402167595,1768559440703,-864.0,0.00014776,2]
[402167596,1768559440712,-1500.0,0.0001479,2]
[402167597,1768559440722,-197.0,0.00014855,2]
[402167598,1768559440731,-2484.541295,0.00014879,7]
[402167599,1768559440740,-688.0,0.00014903,2]
[402167600,1768559440749,-500.0,0.00014903,2]
[402167601,1768559440758,-912.04,0.0001493,2]
[402167602,1768559440767,-500.0,0.00014999,2]
[402167603,1768559440776,-4999.999999,0.00015,2]
[402167604,1768559440786,-241.0,0.00015,2]
[402167605,1768559440795,-2533.074284,0.0001501,7]
[402167606,1768559440804,-688.0,0.0001504,2]
[402167607,1768559440813,-500.0,0.0001504,2]
[402167608,1768559440822,-2674.60743027,0.00015041,2]
[402167609,1768559440831,-553.64373807,0.00015041,2]
[402167610,1768559440840,-2058.243612,0.00015043,7]
[402167611,1768559440849,-675.226843,0.00015056,7]
[402167612,1768559440858,-1701.285297,0.00015056,7]
[402167613,1768559440867,-194.2841096,0.00015068,2]
[402167614,1768559440880,-194.2841096,0.00015068,2]
[402167615,1768559440889,-194.2841096,0.00015068,2]
[402167616,1768559440898,-168.0,0.00015121,2]
[402167617,1768559440907,-5726.46,0.00015134,2]
[402167618,1768559440916,-263.09536091,0.00015145,2]
[402167619,1768559440926,-500.0,0.00015149,2]
[402167620,1768559440935,-1148.991575,0.00015151,7]
[402167621,1768559440944,-912.04,0.00015153,2]
[402167622,1768559440954,-688.0,0.00015177,2]
[402167623,1768559440963,-500.0,0.00015177,2]
[402167624,1768559440972,-4240.49794556,0.000152,2]
[402167625,1768559440981,-151.0,0.000152,2]
[402167626,1768559440989,-499.43505565,0.000152,2]
[402167627,1768559440999,-1630.47776,0.00015205,7]
[402167628,1768559441007,-688.0,0.00015314,2]
[402167629,1768559441016,-500.0,0.00015314,2]
[402167630,1768559441025,-1569.2848594,0.00015314,2]
[402167631,1768559441034,-912.04,0.00015341,2]
[402167632,1768559441043,-500.0,0.00015341,2]
[402167633,1768559441052,-272.21650008,0.00015352,2]
[402167634,1768559441061,-168.0,0.00015366,2]
[402167635,1768559441069,-210.35,0.0001537,2]
[402167636,1768559441079,-168.0,0.00015396,2]
[402167637,1768559441087,-486.44,0.000154,2]
[402167638,1768559441096,-154.17015447,0.000154,2]
[402167639,1768559441105,-222.22222224,0.000154,2]
[402167640,1768559441114,-566.64906408,0.000154,2]
[402167641,1768559441129,-371.04651617,0.000154,2]
[402167642,1768559441141,-227.02596514,0.000154,2]
[402167643,1768559441150,-527.02186791,0.000154,2]
[402167644,1768559441159,-185.52325807,0.000154,2]
[402167645,1768559441168,-168.0,0.00015428,2]
[402167646,1768559441178,-4185.97536211,0.00015443,2]
[402167647,1768559441187,-688.0,0.00015451,2]
[402167648,1768559441197,-500.0,0.00015451,2]
[402167649,1768559441207,-499.43505565,0.00015471,5]
[402167650,1768559441216,-912.04,0.00015499,2]
[402167651,1768559441226,-500.0,0.00015499,2]
[402167652,1768559441236,-15000.0,0.000155,2]
[402167653,1768559441247,-688.0,0.00015588,2]
[402167654,1768559441260,-304.85490275,0.00015588,2]
[402167655,1768559441280,-2773.56790519,0.00015589,2]
[402167656,1768559441289,-574.12855637,0.00015589,2]
[402167657,1768559441300,-706.76632426,0.00015602,11]
[402167658,1768559441309,-168.0,0.00015636,2]
[402167659,1768559441320,-371.04651617,0.00015664,5]
[402167660,1768559441330,-304.9869532,0.00015671,2]
[402167661,1768559441339,-1218.8956261,0.00015671,2]
[402167662,1768559441349,-304.9869532,0.00015671,2]
[402167663,1768559441359,-304.9869532,0.00015671,2]
[402167664,1768559441368,-304.9869532,0.00015671,2]
[402167665,1768559441378,-168.0,0.00015697,2]
[402167666,1768559441387,-387.3270606,0.00015699,2]
[402167667,1768559441396,-1239.570408,0.00015699,2]
[402167668,1768559441405,-688.0,0.00015725,2]
[402167669,1768559441414,-191.8411722,0.00015726,2]
[402167670,1768559441423,-304.9869532,0.00015726,2]
[402167671,1768559441439,-304.9869532,0.00015726,2]
[402167672,1768559441458,-304.9869532,0.00015726,2]
[402167673,1768559441467,-304.9869532,0.00015726,2]
[402167674,1768559441476,-304.9869532,0.00015726,2]
[402167675,1768559441486,-304.9869532,0.00015726,2]
[402167676,1768559441495,-468.9467516,0.00015726,2]
[402167677,1768559441504,-168.0,0.00015734,2]
[402167678,1768559441513,-499.43505565,0.00015743,9]
[402167679,1768559441522,-258.0,0.00015745,2]
[402167680,1768559441531,-500.0,0.00015748,2]
[402167681,1768559441539,-500.0,0.00015748,2]
[402167682,1768559441548,-244.5644873,0.00015748,2]
[402167683,1768559441557,-905.02364969,0.00015749,30]
[402167684,1768559441566,-300.0,0.00015749,30]
[402167685,1768559441575,-254.7121447,0.00015749,30]
[402167686,1768559441584,-253.22411286,0.00015749,30]
[402167687,1768559441592,-500.0,0.00015749,30]
[402167688,1768559441602,-254.7121447,0.00015749,30]
[402167689,1768559441611,-152.47875155,0.00015749,30]
[402167690,1768559441619,-359.2330224,0.00015749,30]
[402167691,1768559441628,-216.97362818,0.00015749,30]
[402167692,1768559441637,-500.0,0.00015749,30]
[402167693,1768559441646,-613.20075125,0.00015749,30]
[402167694,1768559441655,-500.0,0.00015749,30]
[402167695,1768559441665,-189.55391239,0.00015749,30]
[402167696,1768559441674,-630.57534039,0.00015749,30]
[402167697,1768559441683,-753.69510558,0.00015749,30]
[402167698,1768559441693,-943.26939022,0.00015749,30]
[402167699,1768559441702,-206.94459613,0.00015749,30]
[402167700,1768559441711,-576.29553561,0.00015749,30]
[402167701,1768559441720,-455.3026535,0.00015749,30]
[402167702,1768559441728,-500.0,0.00015749,30]
[402167703,1768559441737,-304.37470219,0.00015749,30]
[402167704,1768559441746,-500.0,0.00015749,30]
[402167705,1768559441754,-429.18162465,0.00015749,30]
[402167706,1768559441763,-500.0,0.00015749,30]
[402167707,1768559441772,-363.87377922,0.00015749,30]
[402167708,1768559441781,-310.44608761,0.00015749,30]
[402167709,1768559441790,-462.28529852,0.00015749,30]
[402167710,1768559441798,-246.77588714,0.00015749,30]
[402167711,1768559441807,-168.0,0.00015761,2]
[402167712,1768559441816,-912.04,0.00015831,2]
[402167713,1768559441825,-499.0,0.00015835,2]
[402167714,1768559441834,-688.0,0.00015862,2]
[402167715,1768559441842,-499.0,0.00015869,2]
[402167716,1768559441851,-258.0,0.00015876,2]
[402167717,1768559441860,-371.04651617,0.00015929,9]
[402167718,1768559441868,-566.64906408,0.00015948,9]
[402167719,1768559441880,-227.02596514,0.00015948,9]
[402167720,1768559441889,-6442.26,0.00015975,2]
[402167721,1768559441898,-912.04,0.00015998,2]
[402167722,1768559441907,-688.0,0.00015999,2]
[402167723,1768559441916,-3582.833618,0.00016,2]
[402167724,1768559441926,-151.0,0.00016,2]
[402167725,1768559441935,-706.76632426,0.00016005,13]
[402167726,1768559441944,-499.43505565,0.00016014,13]
[402167727,1768559441955,-499.0,0.00016076,2]
[402167728,1768559441963,-499.0,0.00016101,2]
[402167729,1768559441972,-688.0,0.00016136,2]
[402167730,1768559441982,-2876.18991768,0.00016137,2]
[402167731,1768559441991,-595.37131296,0.00016137,2]
[402167732,1768559441999,-371.04651617,0.00016193,13]
[402167733,1768559442008,-168.0,0.000162,2]
[402167734,1768559442018,-912.04,0.00016252,2]
[402167735,1768559442027,-1000.0,0.00016253,2]
[402167736,1768559442036,-168.0,0.00016263,2]
[402167737,1768559442045,-499.0,0.00016266,2]
[402167738,1768559442054,-688.0,0.00016273,2]
[402167739,1768559442063,-499.43505565,0.00016285,16]
[402167740,1768559442072,-1041.527322,0.00016289,7]
[402167741,1768559442081,-152.018513,0.00016332,7]
[402167742,1768559442089,-498.383279,0.00016332,7]
[402167743,1768559442098,-1184.248236,0.00016351,7]
[402167744,1768559442107,-706.76632426,0.00016407,14]
[402167745,1768559442116,-688.0,0.0001641,2]
[402167746,1768559442126,-583.42190144,0.00016438,2]
[402167747,1768559442135,-168.0,0.00016455,2]
[402167748,1768559442144,-371.04651617,0.00016458,16]
[402167749,1768559442153,-1511.81883985,0.00016464,12]
[402167750,1768559442162,-566.64906408,0.00016496,17]
[402167751,1768559442172,-227.02596514,0.00016496,17]
[402167752,1768559442181,-1041.66666667,0.00016502,2]
[402167753,1768559442190,-698.92718303,0.00016547,2]
[402167754,1768559442199,-499.43505565,0.00016557,20]
[402167755,1768559442209,-168.0,0.000166,2]
[402167756,1768559442218,-912.04,0.00016665,2]
[402167757,1768559442227,-912.04,0.00016665,2]
[402167758,1768559442236,-912.04,0.00016665,2]
[402167759,1768559442245,-912.04,0.00016665,2]
[402167760,1768559442254,-912.08719323,0.00016665,2]
[402167761,1768559442263,-2982.60894464,0.00016685,2]
[402167762,1768559442273,-617.40005154,0.00016685,2]
[402167763,1768559442282,-371.04651617,0.00016722,20]
[402167764,1768559442291,-168.0,0.00016728,2]
[402167765,1768559442301,-168.0,0.00016734,2]
[402167766,1768559442310,-151.0,0.000168,2]
[402167767,1768559442320,-706.76632426,0.0001681,15]
[402167768,1768559442329,-7158.07,0.00016816,2]
[402167769,1768559442338,-499.43505565,0.00016828,24]
[402167770,1768559442347,-180.19821804,0.00016896,2]
[402167771,1768559442356,-371.04651617,0.00016987,24]
[402167772,1768559442365,-111527.81167446,0.00017,2]
[402167773,1768559442375,-140511.87845182,0.0001701,3]
[402167774,1768559442384,-276.0,0.00017032,2]
[402167775,1768559442393,-566.64906408,0.00017044,25]
[402167776,1768559442402,-227.02596514,0.00017044,25]
[402167777,1768559442411,-1569.2848594,0.0001709,2]
[402167778,1768559442421,-499.43505565,0.000171,28]
[402167779,1768559442430,-276.0,0.00017156,2]
[402167780,1768559442439,-706.76632426,0.00017212,17]
[402167781,1768559442448,-3092.96547559,0.00017233,2]
[402167782,1768559442457,-640.24385345,0.00017233,2]
[402167783,1768559442466,-371.04651617,0.00017251,28]
[402167784,1768559442475,-276.0,0.00017253,2]
[402167785,1768559442484,-304.03401308,0.00017352,2]
[402167786,1768559442493,-499.43505565,0.00017371,31]
[402167787,1768559442503,-151.91326675,0.00017379,2]
[402167788,1768559442512,-371.04651617,0.00017516,31]
[402167789,1768559442522,-276.0,0.00017533,2]
[402167790,1768559442531,-566.64906408,0.00017591,32]
[402167791,1768559442540,-227.02596514,0.00017591,32]
[402167792,1768559442551,-151.0,0.000176,2]
[402167793,1768559442560,-706.76632426,0.00017615,18]
[402167794,1768559442577,-150.19,0.00017632,2]
[402167795,1768559442586,-499.43505565,0.00017642,35]
[402167796,1768559442595,-504.48406529,0.0001771,5]
[402167797,1768559442604,-3000.0,0.00017758,7]
[402167798,1768559442613,-371.04651617,0.0001778,35]
[402167799,1768559442622,-3207.40519818,0.00017781,2]
[402167800,1768559442631,-663.93287602,0.00017781,2]
[402167801,1768559442640,-150.202,0.00017799,2]
[402167802,1768559442649,-150.199,0.00017799,2]
[402167803,1768559442659,-25427.36,0.000178,3]
[402167804,1768559442667,-4185.97536211,0.00017814,2]
[402167805,1768559442676,-1000.0,0.00017879,2]
[402167806,1768559442686,-244.0,0.00017879,2]
[402167808,1768559442694,-499.43505565,0.00017914,39]
[402167809,1768559442704,-706.76632426,0.00018017,20]
[402167810,1768559442713,-371.04651617,0.00018045,39]
[402167811,1768559442722,-269.92578944,0.00018125,7]
[402167812,1768559442731,-566.64906408,0.00018139,40]
[402167813,1768559442740,-227.02596514,0.00018139,40]
[402167814,1768559442749,-499.43505565,0.00018185,42]
[402167815,1768559442758,-151.0,0.000182,2]
[402167816,1768559442767,-151.0,0.000182,2]
[402167817,1768559442777,-371.04651617,0.00018309,42]
[402167818,1768559442786,-688.49839244,0.00018329,2]
[402167819,1768559442795,-239.85157891,0.00018344,7]
[402167820,1768559442804,-728.0,0.00018396,2]
[402167821,1768559442814,-151.0,0.000184,2]
[402167822,1768559442823,-779.0,0.000184,2]
[402167823,1768559442832,-706.76632426,0.00018419,21]
[402167824,1768559442841,-499.43505565,0.00018456,46]
[402167825,1768559442850,-728.0,0.00018499,2]
[402167826,1768559442859,-166.0,0.00018499,2]
[402167827,1768559442868,-386.10278099,0.00018554,7]
[402167828,1768559442880,-371.04651617,0.00018574,46]
[402167829,1768559442889,-239.85157891,0.00018618,7]
[402167830,1768559442899,-151.0,0.00018648,2]
[402167831,1768559442908,-566.64906408,0.00018687,48]
[402167832,1768559442917,-227.02596514,0.00018687,48]
[402167833,1768559442927,-10170.94,0.000187,3]
[402167834,1768559442936,-728.0,0.00018716,2]
[402167835,1768559442947,-728.0,0.00018718,2]
[402167836,1768559442956,-499.43505565,0.00018728,50]
[402167838,1768559442965,-706.76632426,0.00018822,22]
[402167840,1768559442974,-371.04651617,0.00018838,50]
[402167842,1768559442983,-3000.0,0.00018854,7]
[402167843,1768559442992,-1569.2848594,0.00018866,2]
[402167844,1768559443001,-713.97283296,0.00018877,2]
[402167845,1768559443010,-303.10001603,0.000189,2]
[402167846,1768559443019,-199.87631576,0.00018947,7]
[402167847,1768559443028,-6959.82178558,0.00018961,2]
[402167848,1768559443036,-130432.1124448,0.00018966,2]
[402167849,1768559443045,-499.43505565,0.00018999,54]
[402167850,1768559443054,-728.0,0.00019018,2]
[402167851,1768559443063,-728.0,0.00019038,2]
[402167853,1768559443072,-303.10001603,0.00019089,2]
[402167854,1768559443083,-154.17015447,0.00019098,56]
[402167855,1768559443091,-151.0,0.000191,2]
[402167856,1768559443101,-151.0,0.000191,2]
[402167857,1768559443112,-371.04651617,0.00019103,54]
[402167859,1768559443129,-160.0,0.00019128,2]
[402167860,1768559443138,-2500.0,0.00019178,2]
[402167861,1768559443147,-330.55,0.00019178,2]
[402167862,1768559443156,-2536.62,0.00019178,2]
[402167863,1768559443166,-2391.08,0.00019178,2]
[402167864,1768559443175,-500.0,0.00019178,2]
[402167865,1768559443184,-500.0,0.00019178,2]
[402167866,1768559443193,-500.0,0.00019178,2]
[402167867,1768559443203,-500.0,0.00019178,2]
[402167868,1768559443212,-500.0,0.00019178,2]
[402167869,1768559443221,-500.0,0.00019178,2]
[402167870,1768559443230,-500.0,0.00019178,2]
[402167872,1768559443239,-500.0,0.00019178,2]
[402167873,1768559443249,-500.0,0.00019178,2]
[402167874,1768559443258,-500.0,0.00019178,2]
[402167875,1768559443267,-500.0,0.00019178,2]
[402167876,1768559443276,-500.0,0.00019178,2]
[402167877,1768559443285,-500.0,0.00019178,2]
[402167878,1768559443295,-500.0,0.00019178,2]
[402167879,1768559443304,-512.21968696,0.00019178,2]
[402167880,1768559443314,-1796.040967,0.00019178,2]
[402167881,1768559443329,-1796.040967,0.00019178,2]
[402167882,1768559443339,-1796.040967,0.00019178,2]
[402167883,1768559443349,-1796.040967,0.00019178,2]
[402167884,1768559443358,-1796.040967,0.00019178,2]
[402167885,1768559443368,-1796.040967,0.00019178,2]
[402167886,1768559443377,-1796.040967,0.00019178,2]
[402167887,1768559443387,-1796.040967,0.00019178,2]
[402167888,1768559443396,-1796.040967,0.00019178,2]
[402167889,1768559443406,-1796.040967,0.00019178,2]
[402167890,1768559443416,-1796.040967,0.00019178,2]
[402167892,1768559443425,-1796.040967,0.00019178,2]
[402167893,1768559443435,-1796.040967,0.00019178,2]
[402167895,1768559443444,-1796.040967,0.00019178,2]
[402167897,1768559443453,-1796.040967,0.00019178,2]
[402167899,1768559443463,-1796.040967,0.00019178,2]
[402167902,1768559443473,-1796.040967,0.00019178,2]
[402167904,1768559443484,-1796.040967,0.00019178,2]
[402167909,1768559443663,-1796.040967,0.00019178,2]
[402167910,1768559443690,-1796.040966,0.00019178,2]
[402167911,1768559443699,-49883.45480826,0.000192,2]
[402167912,1768559443709,-151.0,0.000192,2]
[402167913,1768559443718,-151.0,0.000192,2]
[402167914,1768559443728,-728.0,0.00019215,2]
[402167915,1768559443738,-706.76632426,0.00019224,24]
[402167916,1768559443748,-566.64906408,0.00019235,56]
[402167917,1768559443757,-227.02596514,0.00019235,56]
[402167918,1768559443766,-728.0,0.00019258,2]
[402167919,1768559443779,-151.0,0.00019262,2]
[402167920,1768559443790,-499.43505565,0.00019271,57]
[402167921,1768559443800,-303.10001603,0.00019278,2]
[402167922,1768559443811,-1591.0,0.00019281,5]
[402167923,1768559443823,-588.0,0.00019281,5]
[402167924,1768559443832,-658.0,0.00019281,5]
[402167925,1768559443842,-335.85152608,0.00019352,2]
[402167926,1768559443852,-371.04651617,0.00019367,57]
[402167927,1768559443862,-17119.78,0.000194,2]
[402167928,1768559443871,-176.42,0.000194,2]
[402167929,1768559443885,-167.99,0.000194,2]
[402167930,1768559443895,-208.52,0.000194,2]
[402167931,1768559443905,-255.7728031,0.00019425,2]
[402167932,1768559444646,-3e-08,0.00010801,2]
[402167934,1768559445634,-467.3242983,0.00010801,2]
[402167942,1768559446634,-49532.67570167,0.00010801,2]
[402167943,1768559446644,-629.0,0.00016515,2]
[402167944,1768559446655,-151.0,0.00019178,2]
[402167945,1768559446667,-243.48264022,0.00019178,2]
[402167946,1768559446678,-484.61702468,0.00019425,2]
[402167947,1768559446688,-728.0,0.00019448,2]
[402167948,1768559446705,-303.10001603,0.00019467,2]
[402167949,1768559446719,-5000.0,0.00019502,2]
[402167950,1768559446730,-629.0,0.00019515,2]
[402167951,1768559446740,-160.0,0.00019535,2]
[402167952,1768559446750,-499.43505565,0.00019542,61]
[402167953,1768559446760,-728.0,0.00019561,2]
[402167954,1768559446769,-500.0,0.00019565,2]
[402167955,1768559446779,-473.03559361,0.000196,14]
[402167956,1768559446789,-706.76632426,0.00019627,25]
[402167957,1768559446799,-371.04651617,0.00019632,61]
[402167958,1768559446809,-303.10001569,0.00019656,2]
[402167959,1768559446819,-1000.0,0.00019667,2]
[402167960,1768559446829,-492.0,0.00019667,2]
[402167961,1768559446839,-728.0,0.0001967,2]
[402167962,1768559446849,-728.0,0.00019678,2]
[402167963,1768559446859,-732.0,0.00019678,2]
[402167964,1768559446869,-566.64906408,0.00019783,63]
[402167965,1768559446883,-227.02596514,0.00019783,63]
[402167966,1768559446894,-728.0,0.00019796,2]
[402167967,1768559446904,-160.0,0.000198,6]
[402167968,1768559446915,-156.0,0.000198,7]
[402167969,1768559446927,-156.06450074,0.000198,7]
[402167970,1768559446940,-163.0,0.000198,5]
[402167971,1768559446953,-499.43505565,0.00019813,65]
[402167972,1768559446964,-728.0,0.00019816,2]
[402167973,1768559446975,-20130.58354291,0.0001983,2]
[402167974,1768559499626,-207.67538506,9.15e-05,2]
[402167975,1768559499647,-364.86461491,9.204e-05,2]
[402167976,1768559503339,-263.64472173,9.204e-05,2]
[402167977,1768559505498,-171.49066336,9.204e-05,2]
[402167978,1768559505522,-15.52664811,9.312e-05,2]
[402167979,1768559509156,-207.41387787,9.312e-05,2]
[402167981,1768559559504,155.0,1e-08,2]
[402167983,1768559679057,294.01,6.049e-05,2]
[402167984,1768559679463,588.01,6.599e-05,2]
[402167985,1768559679865,882.02,7.148e-05,2]
[402167986,1768559680256,1176.03,7.698e-05,2]
[402167987,1768559680665,1470.03,8.248e-05,2]
[402167988,1768559681197,1764.04,8.798e-05,2]
[402167989,1768559687184,-163.04901972,9.348e-05,2]
[402167990,1768559690480,-212.04275117,9.348e-05,2]
[402167991,1768559693892,-249.95378821,9.348e-05,2]
[402167992,1768559697638,-249.67327297,9.348e-05,2]
[402167993,1768559701360,-296.61904294,9.348e-05,2]
[402167994,1768559704143,-226.04067442,9.348e-05,2]
[402167995,1768559707174,-502.99478134,9.348e-05,2]
[402167996,1768559757497,251.1,5.996e-05,2]
[402167997,1768559757910,502.19,6.541e-05,2]
[402167998,1768559758626,753.29,7.087e-05,2]
[402167999,1768559758724,1004.38,7.632e-05,2]
[402168000,1768559759151,1255.48,8.177e-05,2]
[402168001,1768559759496,59.43,8.722e-05,2]
[402168002,1768559759520,1447.14,8.722e-05,2]
[402168003,1768559764721,-355.99671878,9.267e-05,2]
[402168004,1768559766307,-359.20701261,9.267e-05,2]